bitfinex-derivatives/quotes_BTCF0:USTF0_20240910
["timestamp","ask_amount","ask_price","bid_price","bid_amount"]
[1725933468388,0.09485176,56904.0,56903.0,0.25875394]
[1725933468590,0.19089719,56904.0,56903.0,0.25875394]
[1725933468985,0.22191375,56904.0,56903.0,0.26075394]
[1725933469291,0.21691375,56904.0,56903.0,0.26175394]
[1725933469501,0.07785176,56904.0,56903.0,0.34960894]
[1725933469694,0.24583439,56904.0,56903.0,0.34960894]
[1725933469993,0.13176659,56904.0,56903.0,0.29982114]
[1725933470195,0.25156584,56904.0,56903.0,0.29982114]
[1725933470391,0.29548066,56904.0,56903.0,1.4181222]
[1725933470592,0.12176658,56904.0,56903.0,1.4181222]
[1725933470993,0.12176658,56904.0,56903.0,1.42684112]
[1725933471194,0.18113186,56904.0,56903.0,1.42684112]
[1725933471499,0.27806325,56904.0,56903.0,1.42684112]
[1725933472197,0.12176658,56904.0,56903.0,1.42684112]
[1725933472896,0.06785175,56904.0,56903.0,1.42684112]
[1725933473800,0.06785175,56904.0,56903.0,1.51469612]
[1725933474100,0.15629667,56907.0,56906.0,0.175702]
[1725933474295,0.15629667,56907.0,56906.0,0.176502]
[1725933474495,0.25321548,56907.0,56906.0,1.303702]
[1725933474697,0.17371408,56911.0,56906.0,1.39582386]
[1725933474898,0.17371408,56911.0,56910.0,0.248644]
[1725933475099,0.17371408,56911.0,56910.0,0.45867255]
[1725933475497,0.17371408,56911.0,56910.0,0.56328901]
[1725933476698,0.17971408,56911.0,56910.0,0.56328901]
[1725933477006,0.006,56911.0,56910.0,0.56328901]
[1725933477398,0.006,56911.0,56910.0,0.45867255]
[1725933478303,0.011,56911.0,56910.0,0.49038193]
[1725933479000,0.011,56911.0,56910.0,0.63580672]
[1725933479618,0.011,56911.0,56910.0,0.63563394]
[1725933480900,0.011,56911.0,56910.0,0.49020524]
[1725933481402,0.011,56911.0,56910.0,0.6358434]
[1725933482700,0.011,56911.0,56910.0,0.36819738]
[1725933483109,0.011,56911.0,56910.0,0.45604138]
[1725933484303,0.006,56911.0,56910.0,0.45604138]
[1725933484497,0.006,56911.0,56910.0,0.46104138]
[1725933484701,0.0672,56918.0,56915.0,0.087837]
[1725933484904,0.0672,56918.0,56915.0,0.248637]
[1725933484905,0.0631,56918.0,56915.0,0.248637]
[1725933485892,0.0666,56916.0,56915.0,0.248637]
[1725933486092,0.0676,56916.0,56915.0,0.248637]
[1725933487900,0.0676,56916.0,56915.0,0.336474]
[1725933489706,0.14415901,56920.0,56915.0,0.68647041]
[1725933489912,0.14415901,56920.0,56919.0,0.1608]
[1725933490097,0.14415901,56920.0,56919.0,0.28336794]
[1725933490298,0.04651451,56920.0,56919.0,0.60516695]
[1725933490498,0.0041,56927.0,56926.0,0.08782]
[1725933490805,0.0976445,56927.0,56926.0,0.68471884]
[1725933491812,0.1146445,56927.0,56926.0,0.68671884]
[1725933492205,0.1146445,56927.0,56926.0,0.82674134]
[1725933492408,0.1086445,56927.0,56926.0,0.68571884]
[1725933492712,0.1146445,56927.0,56926.0,0.68671884]
[1725933492916,0.1146445,56927.0,56926.0,0.68313851]
[1725933493211,0.1146445,56927.0,56926.0,0.82316101]
[1725933493403,0.1146445,56927.0,56926.0,0.68313851]
[1725933494112,0.1116445,56927.0,56926.0,0.68313851]
[1725933494712,0.05893129,56927.0,56926.0,0.68313851]
[1725933495217,0.05893129,56927.0,56926.0,0.82316101]
[1725933495716,0.05893129,56927.0,56926.0,0.68313851]
[1725933496414,0.05893129,56927.0,56926.0,0.82316101]
[1725933496917,0.05893129,56927.0,56926.0,0.68313851]
[1725933497107,0.05893129,56927.0,56926.0,0.90425362]
[1725933497710,0.05893129,56927.0,56926.0,0.2817083]
[1725933498919,0.05893129,56927.0,56926.0,0.3517368]
[1725933499117,0.13874929,56927.0,56926.0,0.0368883]
[1725933499306,0.05093129,56927.0,56926.0,0.1247083]
[1725933499813,0.05093129,56927.0,56926.0,0.0058]
[1725933500417,0.04493129,56927.0,56926.0,0.0048]
[1725933500614,0.04493129,56927.0,56926.0,0.09562]
[1725933501213,0.04493129,56927.0,56926.0,0.08862]
[1725933501413,0.04493129,56927.0,56926.0,0.09062]
[1725933502523,0.04493129,56927.0,56926.0,0.0028]
[1725933502723,0.04493129,56927.0,56917.0,0.08753953]
[1725933502724,0.087825,56923.0,56921.0,0.02588572]
[1725933503015,0.087825,56923.0,56917.0,0.08753953]
[1725933503016,0.1224,56922.0,56920.0,0.05255389]
[1725933503219,0.16733129,56922.0,56921.0,0.21255389]
[1725933503519,0.16733129,56922.0,56921.0,0.247827]
[1725933504023,0.16733129,56922.0,56921.0,0.251827]
[1725933504722,0.16833129,56922.0,56921.0,0.251827]
[1725933504917,0.20456842,56922.0,56921.0,0.251827]
[1725933505422,0.20356842,56922.0,56921.0,0.256827]
[1725933505717,0.16733129,56922.0,56921.0,0.256827]
[1725933506619,0.1224,56922.0,56921.0,0.256827]
[1725933506819,0.098519,56922.0,56921.0,0.256827]
[1725933507321,0.09859292,56922.0,56921.0,0.256827]
[1725933507726,0.0618,56922.0,56921.0,0.256827]
[1725933509214,0.0618,56922.0,56921.0,0.251827]
[1725933509524,0.0618,56922.0,56921.0,0.256827]
[1725933510617,0.0618,56922.0,56921.0,0.252827]
[1725933510828,0.10673129,56922.0,56921.0,0.256827]
[1725933511515,0.21147328,56922.0,56921.0,0.256827]
[1725933512923,0.0615,56925.0,56924.0,0.087823]
[1725933513118,0.10643129,56925.0,56924.0,0.20835041]
[1725933513725,0.0008,56927.0,56926.0,0.08782]
[1725933513926,0.04573129,56927.0,56926.0,0.36834741]
[1725933514317,0.1228,56935.0,56926.0,0.58842657]
[1725933514522,0.1228,56935.0,56934.0,0.1608]
[1725933514721,0.1228,56935.0,56934.0,0.42300426]
[1725933515023,0.00626,56946.0,56934.0,0.42300426]
[1725933515024,0.1814,56945.0,56943.0,0.087793]
[1725933515222,0.1814,56945.0,56944.0,0.50965186]
[1725933515421,0.1814,56945.0,56944.0,0.50951406]
[1725933516121,0.087785,56949.0,56944.0,0.50951406]
[1725933516321,0.0041,56956.0,56948.0,0.28271963]
[1725933516522,0.1197,56958.0,56948.0,0.28271963]
[1725933516523,0.1197,56958.0,56955.0,0.1608]
[1725933516825,0.1197,56958.0,56957.0,0.088572]
[1725933517023,0.1197,56958.0,56957.0,0.20749941]
[1725933517531,0.1197,56958.0,56957.0,0.20549708]
[1725933517716,0.1247,56958.0,56957.0,0.20549708]
[1725933518224,0.1337,56958.0,56957.0,0.31146821]
[1725933518423,0.1287,56958.0,56957.0,0.20649708]
[1725933518618,0.1337,56958.0,56957.0,0.20749708]
[1725933519027,0.0738,56958.0,56957.0,0.20749708]
[1725933519220,0.014,56958.0,56957.0,0.20749708]
[1725933519420,0.014,56958.0,56957.0,0.23888677]
[1725933519723,0.24979349,56966.0,56957.0,0.23888677]
[1725933519924,0.13968013,56965.0,56951.0,0.14146019]
[1725933520230,0.19093996,56954.0,56951.0,0.14146019]
[1725933520529,0.17421313,56952.0,56951.0,0.22924119]
[1725933520714,0.13968013,56952.0,56951.0,0.22924119]
[1725933521824,0.13968013,56952.0,56951.0,0.087781]
[1725933522019,0.14268747,56952.0,56948.0,0.03234156]
[1725933522226,0.19195239,56949.0,56947.0,0.16]
[1725933522529,0.31058607,56948.0,56942.0,0.247795]
[1725933522716,0.13609321,56947.0,56945.0,0.0318844]
[1725933522920,0.08221603,56946.0,56945.0,0.0318844]
[1725933523118,0.13609618,56946.0,56945.0,0.0318844]
[1725933523516,0.25631062,56946.0,56941.0,0.087796]
[1725933523723,0.15705582,56942.0,56941.0,0.087796]
[1725933523932,0.19510036,56942.0,56941.0,0.087796]
[1725933524120,0.13649618,56942.0,56941.0,0.087796]
[1725933524321,0.19509534,56942.0,56941.0,0.087796]
[1725933524630,0.29314698,56942.0,56941.0,0.257796]
[1725933525128,0.29314698,56942.0,56941.0,0.247796]
[1725933525329,0.29314698,56942.0,56941.0,0.265796]
[1725933526431,0.29314698,56942.0,56941.0,0.018]
[1725933526732,0.13649618,56942.0,56941.0,0.018]
[1725933527327,0.21205725,56942.0,56941.0,0.018]
[1725933527522,0.26594156,56942.0,56941.0,0.008]
[1725933527723,0.3096431,56942.0,56941.0,0.017]
[1725933527928,0.17441748,56942.0,56941.0,0.017]
[1725933528135,1.54905248,56942.0,56941.0,0.008]
[1725933528330,1.54905248,56942.0,56941.0,0.016]
[1725933528631,1.54905248,56942.0,56941.0,0.008]
[1725933528932,1.54905248,56942.0,56941.0,0.015]
[1725933529236,1.58012022,56942.0,56941.0,0.015]
[1725933529735,0.087803,56937.0,56936.0,0.05237217]
[1725933530036,0.1604,56937.0,56933.0,0.05237217]
[1725933530329,0.087809,56933.0,56932.0,0.05237217]
[1725933530531,0.088209,56933.0,56932.0,0.05237217]
[1725933530731,0.087815,56929.0,56926.0,0.08736034]
[1725933530934,0.0004,56927.0,56925.0,0.03188356]
[1725933531129,0.0004,56927.0,56926.0,0.08782]
[1725933532435,0.0004,56927.0,56926.0,0.45427001]
[1725933532637,0.0004,56927.0,56926.0,0.45420838]
[1725933532823,0.0004,56927.0,56926.0,0.45420958]
[1725933533230,0.0004,56927.0,56926.0,0.46720958]
[1725933533429,0.0004,56927.0,56926.0,0.37990967]
[1725933533633,0.0014,56927.0,56926.0,0.47521693]
[1725933533826,0.0014,56927.0,56926.0,0.47121693]
[1725933534434,0.0014,56927.0,56926.0,0.38290967]
[1725933535128,0.0004,56927.0,56926.0,0.30920725]
[1725933535331,0.0014,56927.0,56926.0,0.26382]
[1725933536737,0.0014,56927.0,56926.0,0.10382]
[1725933541736,0.249218,56927.0,56926.0,0.016]
[1725933542240,0.089218,56927.0,56926.0,0.016]
[1725933543031,0.089218,56927.0,56926.0,0.007]
[1725933543230,0.089218,56927.0,56926.0,0.015]
[1725933543439,0.089218,56927.0,56926.0,0.014]
[1725933543643,0.089218,56927.0,56926.0,0.006]
[1725933543836,0.089218,56927.0,56926.0,0.013]
[1725933544240,0.0616,56929.0,56926.0,0.012]
[1725933544440,0.0616,56929.0,56928.0,0.088217]
[1725933544632,0.08781,56932.0,56928.0,0.088217]
[1725933544833,0.08781,56932.0,56931.0,0.0004]
[1725933545038,0.08781,56932.0,56929.0,0.087815]
[1725933545239,0.0004,56930.0,56929.0,0.087815]
[1725933545441,0.087812,56931.0,56929.0,0.087815]
[1725933545639,0.087812,56931.0,56930.0,0.0004]
[1725933547744,0.087812,56931.0,56930.0,0.0024]
[1725933547944,0.087812,56931.0,56930.0,0.0034]
[1725933551344,0.087812,56931.0,56930.0,0.20979969]
[1725933551749,0.11947992,56931.0,56930.0,0.20979969]
[1725933551945,0.11947992,56931.0,56930.0,0.09071208]
[1725933552151,0.11947992,56931.0,56930.0,0.0034]
[1725933552347,1.24643992,56931.0,56930.0,0.0034]
[1725933553351,0.614772,56931.0,56930.0,0.0034]
[1725933553859,1.214772,56931.0,56930.0,0.0034]
[1725933554056,0.614772,56931.0,56930.0,0.0034]
[1725933554248,0.087812,56931.0,56930.0,0.12258744]
[1725933554661,0.087812,56931.0,56930.0,0.21040044]
[1725933557660,0.19167393,56934.0,56933.0,0.087809]
[1725933557959,0.087807,56934.0,56933.0,0.20739644]
[1725933558157,0.087807,56934.0,56933.0,0.088209]
[1725933558355,0.19222681,56934.0,56933.0,0.088209]
[1725933558854,0.19222681,56934.0,56933.0,0.0004]
[1725933559656,0.19580438,56934.0,56933.0,0.0004]
[1725933559858,0.091807,56934.0,56933.0,0.0004]
[1725933560658,0.088807,56934.0,56933.0,0.0014]
[1725933560955,0.087807,56934.0,56933.0,0.0014]
[1725933561157,0.087807,56934.0,56933.0,0.0034]
[1725933563055,0.12669771,56934.0,56933.0,0.0034]
[1725933565156,0.04387503,56934.0,56933.0,0.2268884]
[1725933565358,0.04387503,56934.0,56933.0,0.0034]
[1725933565359,0.13168203,56934.0,56933.0,0.0034]
[1725933565660,0.29168203,56934.0,56933.0,0.22733503]
[1725933567359,0.087801,56939.0,56938.0,0.0878]
[1725933567663,0.08779,56946.0,56938.0,0.0878]
[1725933567664,0.087795,56942.0,56938.0,0.11896568]
[1725933567865,0.087795,56942.0,56941.0,0.0004]
[1725933568065,0.087795,56942.0,56941.0,0.11896568]
[1725933568252,0.087795,56942.0,56941.0,0.31211571]
[1725933568455,0.03097187,56946.0,56944.0,0.087792]
[1725933568456,0.11876187,56946.0,56944.0,0.087792]
[1725933568658,0.08779,56946.0,56945.0,0.11856568]
[1725933569055,0.08779,56946.0,56945.0,0.11896568]
[1725933569673,0.08779,56946.0,56945.0,0.20669513]
[1725933570256,0.09579,56946.0,56945.0,0.20669513]
[1725933570458,0.09579,56946.0,56945.0,0.20590941]
[1725933570652,0.09579,56946.0,56945.0,0.29367249]
[1725933570853,0.09779,56946.0,56945.0,0.20694304]
[1725933571261,0.09579,56946.0,56945.0,0.20594304]
[1725933571467,0.09579,56946.0,56945.0,0.08819]
[1725933571667,0.09779,56946.0,56945.0,0.08819]
[1725933571862,0.09379,56946.0,56945.0,0.08819]
[1725933572673,0.006,56946.0,56945.0,0.08819]
[1725933573167,0.006,56946.0,56945.0,0.12006874]
[1725933574670,0.002,56946.0,56945.0,0.12006874]
[1725933574870,0.006,56946.0,56945.0,0.12006874]
[1725933576071,0.002,56946.0,56945.0,0.12006874]
[1725933576271,0.09188,56952.0,56948.0,0.087785]
[1725933576572,0.08778,56952.0,56951.0,0.0004]
[1725933577870,0.08978,56952.0,56951.0,0.0004]
[1725933578070,0.09678,56952.0,56951.0,0.0004]
[1725933578871,0.08978,56952.0,56951.0,0.0004]
[1725933579073,0.09778,56952.0,56951.0,0.0014]
[1725933579273,0.25778,56952.0,56951.0,0.089181]
[1725933579470,0.25778,56952.0,56951.0,0.090181]
[1725933579873,0.25778,56952.0,56951.0,0.0024]
[1725933581170,0.345561,56952.0,56951.0,0.0024]
[1725933584075,0.39714725,56952.0,56945.0,0.087789]
[1725933584273,0.16,56948.0,56945.0,0.087789]
[1725933584468,0.0004,56946.0,56945.0,0.087789]
[1725933584666,0.13976725,56946.0,56945.0,0.087789]
[1725933585766,0.22755625,56946.0,56945.0,0.087789]
[1725933586476,0.23055625,56946.0,56945.0,0.087789]
[1725933586866,0.087793,56943.0,56942.0,0.147495]
[1725933587073,0.087793,56943.0,56942.0,0.087795]
[1725933587074,0.38756025,56943.0,56942.0,0.087795]
[1725933587473,0.38756025,56943.0,56939.0,0.087799]
[1725933587474,0.0878,56940.0,56939.0,0.087799]
[1725933587770,0.13976725,56940.0,56939.0,0.087799]
[1725933587977,0.0004,56940.0,56939.0,0.087799]
[1725933588978,0.0004,56940.0,56939.0,0.090799]
[1725933589169,0.0004,56940.0,56939.0,0.16083551]
[1725933589572,0.0004,56940.0,56939.0,0.16483551]
[1725933590575,0.248198,56940.0,56939.0,0.007]
[1725933590773,0.335996,56940.0,56939.0,0.007]
[1725933591174,0.248198,56940.0,56939.0,0.007]
[1725933592079,0.248198,56940.0,56939.0,0.006]
[1725933592278,0.335996,56940.0,56939.0,0.006]
[1725933592678,0.335996,56940.0,56939.0,0.005]
[1725933593285,0.335996,56940.0,56939.0,0.004]
[1725933593784,0.335996,56940.0,56939.0,0.003]
[1725933594882,0.42002012,56940.0,56939.0,0.003]
[1725933596173,0.087813,56930.0,56929.0,0.087814]
[1725933596370,0.12693855,56930.0,56929.0,0.087814]
[1725933596775,0.087819,56927.0,56926.0,0.087819]
[1725933597079,0.12694455,56927.0,56926.0,0.087819]
[1725933598376,0.12794455,56927.0,56926.0,0.101819]
[1725933598872,0.12794455,56927.0,56926.0,0.115819]
[1725933600987,0.12794455,56927.0,56926.0,0.275819]
[1725933600988,0.04012555,56927.0,56926.0,0.275819]
[1725933601189,0.04012555,56927.0,56926.0,0.802819]
[1725933601388,0.04012555,56927.0,56926.0,1.402819]
[1725933601587,0.12225658,56932.0,56931.0,0.087812]
[1725933601785,0.04550599,56935.0,56931.0,0.16935081]
[1725933601982,0.03919393,56934.0,56933.0,0.087809]
[1725933602589,0.03919393,56934.0,56933.0,1.214729]
[1725933603083,0.04550599,56935.0,56934.0,0.087807]
[1725933603290,0.04550599,56935.0,56934.0,1.16082352]
[1725933603474,0.04550599,56935.0,56934.0,0.63390352]
[1725933603791,0.04550599,56935.0,56934.0,0.20648665]
[1725933604089,0.04550599,56935.0,56934.0,0.31154953]
[1725933604287,0.04550599,56935.0,56934.0,0.22374253]
[1725933604789,0.13331199,56935.0,56934.0,0.25505974]
[1725933604983,0.13331199,56935.0,56934.0,0.25505941]
[1725933605691,0.13331199,56935.0,56934.0,0.11884678]
[1725933605887,0.13431199,56935.0,56934.0,0.13184678]
[1725933606194,0.13431199,56935.0,56934.0,0.1009636]
[1725933606195,0.22211799,56935.0,56934.0,0.1009636]
[1725933606387,0.13431199,56935.0,56934.0,0.0134]
[1725933606988,0.22211799,56935.0,56934.0,0.0134]
[1725933608391,0.13431199,56935.0,56934.0,0.0134]
[1725933608595,0.22211799,56935.0,56934.0,0.0134]
[1725933609097,0.176612,56935.0,56934.0,0.0134]
[1725933609592,0.088806,56935.0,56934.0,0.0134]
[1725933612488,0.19358486,56935.0,56934.0,0.0134]
[1725933613594,0.088806,56935.0,56934.0,0.0134]
[1725933614499,0.176612,56935.0,56934.0,0.0134]
[1725933614889,0.36923982,56935.0,56934.0,0.0134]
[1725933615099,0.087826,56922.0,56917.0,0.0592]
[1725933615298,0.087819,56927.0,56916.0,0.33040638]
[1725933615299,0.08783,56921.0,56920.0,0.087828]
[1725933615601,0.08823,56921.0,56920.0,0.087828]
[1725933616501,0.08823,56921.0,56920.0,0.101828]
[1725933618107,0.04429349,56921.0,56920.0,0.36302988]
[1725933618599,0.04529349,56921.0,56920.0,0.37002988]
[1725933619395,0.04529349,56921.0,56920.0,0.108828]
[1725933619602,0.04529349,56921.0,56920.0,0.36933645]
[1725933620207,0.0004,56922.0,56920.0,0.36933645]
[1725933620402,0.088226,56922.0,56921.0,0.26090845]
[1725933621200,0.087826,56922.0,56921.0,0.26090845]
[1725933621604,0.088826,56922.0,56921.0,0.26090845]
[1725933622417,0.088826,56922.0,56921.0,0.27390845]
[1725933622619,0.088826,56922.0,56921.0,0.28790845]
[1725933622826,0.089826,56922.0,56921.0,0.28790845]
[1725933623018,0.002,56922.0,56921.0,0.28790845]
[1725933623710,0.089826,56922.0,56921.0,0.28790845]
[1725933624310,0.089826,56922.0,56921.0,0.14624717]
[1725933624519,0.089826,56922.0,56921.0,0.14532017]
[1725933625023,0.089826,56922.0,56921.0,0.0274]
[1725933625221,0.089826,56922.0,56921.0,0.115227]
[1725933625222,0.002,56922.0,56921.0,0.115227]
[1725933628119,0.089826,56922.0,56921.0,0.115227]
[1725933628322,0.002,56922.0,56921.0,0.115227]
[1725933628517,0.002,56922.0,56921.0,1.490094]
[1725933628717,0.0041,56936.0,56928.0,0.087817]
[1725933629023,0.08781,56933.0,56929.0,0.087815]
[1725933629226,0.08781,56933.0,56932.0,0.0004]
[1725933629933,0.24781,56933.0,56932.0,0.0004]
[1725933630529,0.24881,56933.0,56932.0,0.0094]
[1725933630714,0.08881,56933.0,56932.0,0.0094]
[1725933630914,0.001,56933.0,56932.0,0.09721]
[1725933631328,0.002,56933.0,56932.0,0.10521]
[1725933631829,0.089809,56933.0,56932.0,0.10521]
[1725933632218,0.249809,56933.0,56932.0,0.0174]
[1725933633520,0.337618,56933.0,56932.0,0.22284186]
[1725933633716,0.337618,56933.0,56932.0,0.0174]
[1725933634141,0.425427,56933.0,56932.0,0.0174]
[1725933634323,1.552347,56933.0,56932.0,0.0174]
[1725933634919,1.376729,56933.0,56927.0,0.08769561]
[1725933635133,0.087818,56927.0,56926.0,0.08769561]
[1725933635324,0.247818,56927.0,56926.0,0.08769561]
[1725933635525,0.087821,56925.0,56924.0,0.08769561]
[1725933635724,0.248221,56925.0,56924.0,0.20546021]
[1725933635921,0.248221,56925.0,56924.0,0.08769561]
[1725933636221,0.248221,56925.0,56924.0,0.11786307]
[1725933636732,0.248221,56925.0,56924.0,0.13186307]
[1725933636733,0.249221,56925.0,56924.0,0.13186307]
[1725933637621,0.250221,56925.0,56924.0,0.13886307]
[1725933638332,0.338042,56925.0,56924.0,0.13886307]
[1725933638631,0.36957737,56925.0,56924.0,0.13886307]
[1725933639337,0.36957737,56925.0,56924.0,0.1387846]
[1725933639531,0.36957737,56925.0,56924.0,0.22649637]
[1725933639828,0.36957737,56925.0,56924.0,0.1387846]
[1725933642332,0.090221,56925.0,56924.0,0.2266076]
[1725933646027,0.0024,56925.0,56924.0,0.2266076]
[1725933646431,0.0004,56928.0,56927.0,0.087818]
[1725933646629,0.0004,56928.0,56927.0,1.47311399]
[1725933646829,0.0041,56935.0,56934.0,0.087807]
[1725933647138,0.087803,56937.0,56934.0,0.22343927]
[1725933647432,0.087803,56937.0,56936.0,0.0004]
[1725933647636,0.087803,56937.0,56936.0,0.1181846]
[1725933648026,0.12830775,56937.0,56936.0,0.0004]
[1725933648432,0.087803,56937.0,56936.0,0.0004]
[1725933648734,0.087803,56937.0,56936.0,0.088204]
[1725933649037,0.087803,56937.0,56936.0,0.0004]
[1725933649625,0.087803,56937.0,56936.0,0.0044]
[1725933650140,0.088803,56937.0,56936.0,0.0044]
[1725933651029,0.087803,56937.0,56936.0,0.0074]
[1725933651429,0.087803,56937.0,56936.0,0.095204]
[1725933654043,0.087803,56937.0,56936.0,0.0074]
[1725933654927,0.087803,56937.0,56936.0,0.095204]
[1725933655437,0.175606,56937.0,56936.0,0.0074]
[1725933655736,0.087803,56937.0,56936.0,0.0074]
[1725933656243,0.087803,56937.0,56936.0,0.095204]
[1725933657739,0.087803,56937.0,56936.0,0.0074]
[1725933659839,1.12692,56937.0,56926.0,0.10525467]
[1725933660144,0.19092196,56939.0,56930.0,0.08759471]
[1725933660145,0.087812,56931.0,56930.0,0.08759471]
[1725933660436,0.087812,56931.0,56927.0,0.11722347]
[1725933660437,0.087813,56930.0,56929.0,0.08759778]
[1725933660637,0.237226,56930.0,56929.0,0.11724044]
[1725933660839,0.087815,56929.0,56928.0,0.08759569]
[1725933661038,0.087817,56928.0,56927.0,0.08759569]
[1725933661241,0.175636,56927.0,56926.0,0.008]
[1725933661447,0.176036,56927.0,56926.0,0.008]
[1725933661742,0.175636,56927.0,56926.0,0.008]
[1725933662144,0.087818,56927.0,56926.0,0.008]
[1725933662643,0.087818,56927.0,56926.0,0.09559569]
[1725933663146,0.04388158,56927.0,56926.0,0.09559569]
[1725933663341,0.04388158,56927.0,56926.0,0.21266988]
[1725933663548,0.04488158,56927.0,56926.0,0.011]
[1725933663748,0.04488158,56927.0,56926.0,0.003]
[1725933664348,0.04488158,56927.0,56926.0,0.20766149]
[1725933664641,0.13269958,56927.0,56926.0,0.003]
[1725933665345,0.13369958,56927.0,56926.0,0.006]
[1725933667348,0.04588158,56927.0,56926.0,0.006]
[1725933667833,0.13369958,56927.0,56926.0,0.006]
[1725933669045,0.66069958,56927.0,56926.0,0.006]
[1725933669544,0.74851758,56927.0,56926.0,0.006]
[1725933669843,0.74851758,56927.0,56919.0,0.08759569]
[1725933669844,0.175654,56921.0,56919.0,0.08759569]
[1725933670048,0.087832,56918.0,56915.0,0.08759569]
[1725933670344,0.0625,56920.0,56914.0,0.087836]
[1725933670345,0.087837,56915.0,56914.0,0.087836]
[1725933670648,0.088237,56915.0,56914.0,0.087836]
[1725933672653,0.087842,56912.0,56911.0,0.087843]
[1725933673055,0.088242,56912.0,56911.0,0.087843]
[1725933673955,0.089242,56912.0,56911.0,0.087843]
[1725933675044,0.090242,56912.0,56911.0,0.090843]
[1725933675451,0.090242,56912.0,56911.0,0.003]
[1725933675654,0.250242,56912.0,56911.0,0.003]
[1725933675852,0.338084,56912.0,56911.0,0.003]
[1725933676155,0.26742284,56912.0,56897.0,0.3218]
[1725933676367,0.087864,56897.0,56896.0,0.0041]
[1725933676651,0.0004,56897.0,56892.0,0.22217227]
[1725933676845,0.0004,56893.0,56892.0,0.31004427]
[1725933677249,0.09846367,56898.0,56893.0,0.08787]
[1725933677449,0.09846367,56898.0,56895.0,0.10504312]
[1725933677450,0.087863,56898.0,56895.0,0.10504312]
[1725933677655,0.087863,56898.0,56895.0,0.0874882]
[1725933677861,0.087863,56898.0,56897.0,0.0004]
[1725933679061,0.088863,56898.0,56897.0,0.0004]
[1725933679258,0.11991673,56898.0,56897.0,0.0004]
[1725933679456,0.11991673,56898.0,56897.0,0.05383798]
[1725933679661,0.36777973,56898.0,56897.0,0.0014]
[1725933680754,0.36877973,56898.0,56897.0,0.0044]
[1725933681059,0.28091673,56898.0,56897.0,0.0044]
[1725933681559,0.249863,56898.0,56897.0,0.0044]
[1725933682661,0.337726,56898.0,56897.0,0.0044]
[1725933682959,0.337726,56898.0,56888.0,0.05243798]
[1725933682960,0.087873,56892.0,56888.0,0.05243798]
[1725933683152,0.087878,56888.0,56887.0,0.05243798]
[1725933683464,0.087878,56888.0,56885.0,0.05243798]
[1725933683465,0.088278,56888.0,56885.0,0.05243798]
[1725933683657,0.0004,56886.0,56885.0,0.05243798]
[1725933684461,0.0004,56886.0,56884.0,0.14032198]
[1725933684759,0.0004,56885.0,56884.0,0.14032198]
[1725933686362,0.0014,56885.0,56884.0,0.087884]
[1725933686560,0.0014,56885.0,56884.0,0.14032198]
[1725933687560,0.0024,56885.0,56884.0,0.14032198]
[1725933687860,0.0024,56885.0,56884.0,0.087884]
[1725933689863,0.0024,56885.0,56877.0,0.0874882]
[1725933689864,0.087884,56884.0,56877.0,0.0874882]
[1725933690050,0.087886,56883.0,56880.0,0.05235138]
[1725933690252,0.0004,56878.0,56875.0,0.00864508]
[1725933690454,0.0004,56878.0,56877.0,0.087895]
[1725933690663,0.0004,56878.0,56877.0,0.151895]
[1725933692261,0.0014,56878.0,56877.0,0.151895]
[1725933692462,0.089294,56878.0,56877.0,0.151895]
[1725933692959,0.090294,56878.0,56877.0,0.151895]
[1725933693160,0.0024,56878.0,56877.0,0.151895]
[1725933693871,0.090294,56878.0,56877.0,0.151895]
[1725933694064,0.090294,56878.0,56877.0,0.087895]
[1725933694370,0.087898,56876.0,56872.0,0.0874882]
[1725933694554,0.0004,56873.0,56872.0,0.1753912]
[1725933694760,0.0004,56873.0,56872.0,0.18424142]
[1725933695162,0.0004,56873.0,56872.0,0.09675322]
[1725933695862,0.0014,56873.0,56872.0,0.09675322]
[1725933696281,0.0024,56873.0,56872.0,0.09675322]
[1725933697062,0.090301,56873.0,56872.0,0.09675322]
[1725933698658,0.0024,56873.0,56872.0,0.09675322]
[1725933702368,0.0004,56878.0,56872.0,0.09675322]
[1725933702369,0.087895,56877.0,56872.0,0.1255122]
[1725933702566,0.087895,56877.0,56876.0,0.0004]
[1725933703674,0.088895,56877.0,56876.0,0.088297]
[1725933704979,0.089895,56877.0,56876.0,0.089297]
[1725933705779,0.089895,56877.0,56876.0,0.091297]
[1725933707268,0.089896,56877.0,56876.0,0.12006198]
[1725933707469,0.150996,56877.0,56876.0,0.09103822]
[1725933707672,0.150996,56877.0,56876.0,0.0034]
[1725933708382,0.238892,56877.0,56876.0,0.0034]
[1725933708580,0.237892,56877.0,56876.0,0.0024]
[1725933708778,0.238892,56877.0,56876.0,0.0034]
[1725933709272,0.238892,56877.0,56876.0,0.0024]
[1725933716473,0.326788,56877.0,56876.0,0.0024]
[1725933716794,0.08791,56868.0,56866.0,0.10515728]
[1725933716976,0.087915,56864.0,56863.0,0.10515728]
[1725933717176,0.247915,56864.0,56863.0,0.11688187]
[1725933717785,0.247915,56864.0,56863.0,0.20453994]
[1725933718479,0.08792,56861.0,56859.0,0.10515728]
[1725933718789,0.08792,56861.0,56860.0,0.1163542]
[1725933719681,0.08892,56861.0,56860.0,0.1163542]
[1725933721083,0.24992,56861.0,56860.0,0.1163542]
[1725933721280,0.33784,56861.0,56860.0,0.1163542]
[1725933721481,0.24892,56861.0,56858.0,0.08766314]
[1725933721685,0.247923,56859.0,56858.0,0.07010174]
[1725933721871,0.1604,56859.0,56856.0,0.07010174]
[1725933722077,0.1604,56859.0,56849.0,0.43105728]
[1725933722078,0.17585,56858.0,56857.0,0.05257862]
[1725933722384,0.175852,56857.0,56856.0,0.05257862]
[1725933722578,0.176252,56857.0,56856.0,0.05257862]
[1725933722774,0.175856,56856.0,56855.0,0.05257862]
[1725933722980,0.457156,56856.0,56855.0,0.05257862]
[1725933723501,0.369228,56856.0,56855.0,0.0525335]
[1725933723688,0.2222,56856.0,56854.0,0.07004179]
[1725933723984,0.087932,56853.0,56852.0,0.087934]